bitfinex/quotes_BTCUSD_20260127
["timestamp","ask_amount","ask_price","bid_price","bid_amount"]
[1769492977693,0.65350931,88599.0,88588.0,0.00111066]
[1769492977896,0.37611261,88590.0,88580.0,0.02359545]
[1769492978116,0.37611261,88590.0,88580.0,0.00014022]
[1769492978732,0.37611261,88590.0,88588.0,0.001]
[1769492978869,0.67183741,88593.0,88588.0,0.001]
[1769492980100,0.67183741,88593.0,88580.0,0.00014022]
[1769492980522,0.67183741,88593.0,88580.0,0.00114022]
[1769492980894,0.67183741,88593.0,88580.0,0.00014022]
[1769492982072,0.37611261,88590.0,88580.0,0.00014022]
[1769492983930,0.37611261,88590.0,88580.0,0.00114022]
[1769492984493,0.37611261,88590.0,88580.0,0.00014022]
[1769492984834,0.37611261,88590.0,88580.0,0.00114022]
[1769492985462,0.37611261,88590.0,88580.0,0.00014022]
[1769492986768,0.37611261,88590.0,88580.0,0.00114022]
[1769492987805,0.37611261,88590.0,88580.0,0.00014022]
[1769492988337,0.37611261,88590.0,88580.0,0.00114022]
[1769492988701,0.37611261,88590.0,88580.0,0.00014022]
[1769492990154,0.37611261,88590.0,88580.0,0.00114022]
[1769492990513,0.37611261,88590.0,88580.0,0.00014022]
[1769492990966,0.37611261,88590.0,88580.0,0.00114022]
[1769492992045,0.37611261,88590.0,88580.0,0.00014022]
[1769492993383,0.37611261,88590.0,88580.0,0.00114022]
[1769492993997,0.37611261,88590.0,88580.0,0.00014022]
[1769492994191,0.37611261,88590.0,88580.0,0.00114022]
[1769492994562,0.37611261,88590.0,88580.0,0.00014022]
[1769492994920,0.37611261,88590.0,88580.0,0.00114022]
[1769492996461,0.37611261,88590.0,88580.0,0.00014022]
[1769492996690,0.4790748,88590.0,88580.0,0.00014022]
[1769492996900,0.4790748,88590.0,88580.0,0.00114022]
[1769492997320,0.4790748,88590.0,88580.0,0.00014022]
[1769492997532,0.37611261,88590.0,88580.0,0.00014022]
[1769492997710,0.37611261,88590.0,88580.0,0.00114022]
[1769492998046,0.37611261,88590.0,88580.0,0.00014022]
[1769492998474,0.37611261,88590.0,88580.0,0.00114022]
[1769492999832,0.37611261,88590.0,88580.0,0.00014022]
[1769493000357,0.37611261,88590.0,88580.0,0.00114022]
[1769493001003,0.37611261,88590.0,88580.0,0.00014022]
[1769493001309,0.37611261,88590.0,88580.0,0.00114022]
[1769493002709,0.37611261,88590.0,88580.0,0.00014022]
[1769493002917,0.37611261,88590.0,88580.0,0.02722085]
[1769493003117,0.37611261,88590.0,88581.0,0.02932955]
[1769493003317,0.0001221,88598.0,88582.0,0.54321078]
[1769493003636,0.0001221,88598.0,88584.0,0.02932955]
[1769493004136,0.0001221,88598.0,88583.0,0.67079777]
[1769493004295,0.62721324,88598.0,88583.0,0.00500818]
[1769493004701,0.62721324,88598.0,88582.0,0.02580386]
[1769493004926,0.37611261,88592.0,88582.0,0.02580386]
[1769493005807,0.37611261,88592.0,88582.0,0.02480386]
[1769493006196,0.37611261,88592.0,88583.0,0.001]
[1769493006570,0.37611261,88592.0,88582.0,0.02480386]
[1769493006978,0.37611261,88592.0,88582.0,0.02580386]
[1769493007514,0.37611261,88592.0,88582.0,0.02480386]
[1769493007945,0.37611261,88592.0,88582.0,0.02580386]
[1769493008516,0.4764452,88592.0,88582.0,0.02580386]
[1769493009043,0.4764452,88592.0,88582.0,0.02480386]
[1769493009349,0.4764452,88592.0,88582.0,0.02580386]
[1769493009852,0.47611327,88592.0,88582.0,0.02480386]
[1769493010154,0.47611327,88592.0,88582.0,0.02580386]
[1769493010683,0.47611327,88592.0,88582.0,0.02480386]
[1769493011210,0.47611327,88592.0,88582.0,0.02580386]
[1769493011396,0.37578068,88592.0,88582.0,0.02580386]
[1769493012253,0.37578068,88592.0,88582.0,0.02480386]
[1769493012975,0.37578068,88592.0,88582.0,0.02580386]
[1769493013496,0.37578068,88592.0,88582.0,0.02480386]
[1769493014331,0.37578068,88592.0,88582.0,0.02580386]
[1769493015513,0.37578068,88592.0,88582.0,0.02480386]
[1769493016036,0.37578068,88592.0,88582.0,0.02580386]
[1769493016408,0.01167484,88589.0,88559.0,0.02480386]
[1769493016606,0.37611261,88571.0,88559.0,0.02480386]
[1769493017677,0.62709114,88570.0,88554.0,0.02480386]
[1769493017891,0.62709114,88567.0,88552.0,0.02712]
[1769493018547,0.63876598,88567.0,88549.0,0.0001484]
[1769493018754,0.62709114,88565.0,88549.0,0.0001484]
[1769493018982,0.62709114,88565.0,88559.0,0.001]
[1769493019555,0.62709114,88565.0,88549.0,0.0001484]
[1769493020339,0.1231771,88574.0,88556.0,0.66578959]
[1769493020547,0.37611261,88568.0,88556.0,0.66578959]
[1769493021294,0.37611261,88568.0,88553.0,0.02480386]
[1769493023037,0.6255771,88571.0,88553.0,0.02480386]
[1769493023351,0.37611261,88568.0,88553.0,0.02480386]
[1769493024746,0.37611261,88568.0,88558.0,1.548e-05]
[1769493025052,0.37611261,88568.0,88558.0,0.06533167]
[1769493026563,0.37611261,88568.0,88558.0,1.548e-05]
[1769493033622,1.00208163,88568.0,88558.0,1.548e-05]
[1769493034020,1.00208163,88568.0,88549.0,0.0001484]
[1769493034021,0.37650453,88559.0,88549.0,0.0001484]
[1769493035294,0.37650453,88559.0,88549.0,0.0006159]
[1769493035710,0.37650453,88559.0,88549.0,0.0016159]
[1769493036464,0.37650453,88559.0,88543.0,0.61230299]
[1769493036676,0.37650453,88553.0,88544.0,0.02492568]
[1769493036890,0.37650453,88553.0,88540.0,0.0001484]
[1769493036891,0.40925393,88553.0,88540.0,0.0001484]
[1769493037218,0.37650453,88550.0,88540.0,0.00020106]
[1769493037966,0.37650453,88550.0,88543.0,0.001]
[1769493038137,0.60677553,88552.0,88543.0,0.001]
[1769493038322,0.60677553,88552.0,88540.0,5.266e-05]
[1769493039155,0.40132609,88553.0,88540.0,5.266e-05]
[1769493039358,0.37650453,88550.0,88540.0,5.266e-05]
[1769493040311,0.04013261,88549.0,88540.0,5.266e-05]
[1769493047151,0.60677553,88548.0,88540.0,5.266e-05]
[1769493047419,0.63159709,88545.0,88526.0,0.61230299]
[1769493047650,0.37650453,88539.0,88529.0,0.00020395]
[1769493056291,0.36209364,88539.0,88529.0,0.00020395]
[1769493056859,1.0234533,88539.0,88529.0,0.00020395]
[1769493060682,0.36209364,88539.0,88530.0,0.02455958]
[1769493060896,0.36209364,88539.0,88531.0,0.02455958]
[1769493063313,0.66135966,88549.0,88533.0,0.6487807]
[1769493063314,0.37650453,88541.0,88533.0,0.6487807]
[1769493063448,0.37650453,88541.0,88533.0,0.62694028]
[1769493066758,0.37650453,88541.0,88530.0,0.02455958]
[1769493069455,0.17404439,88541.0,88530.0,0.02455958]
[1769493070695,0.17404439,88541.0,88530.0,0.02259263]
[1769493070901,0.17404439,88541.0,88530.0,0.02082152]
[1769493071076,0.17404439,88541.0,88530.0,0.01597219]
[1769493071481,0.17404439,88541.0,88529.0,0.00020395]
[1769493074451,0.37650453,88537.0,88527.0,0.6372283]
[1769493075951,0.37650453,88537.0,88527.0,0.66178788]
[1769493076153,0.37650453,88540.0,88527.0,0.66278788]
[1769493076338,0.37523281,88540.0,88527.0,0.66278788]
[1769493076573,0.37523281,88540.0,88527.0,0.66178788]
[1769493080280,0.20411982,88540.0,88527.0,0.66178788]
[1769493081142,0.20411982,88540.0,88528.0,0.06623879]
[1769493083241,0.20411982,88540.0,88524.0,0.0002]
[1769493083560,0.37650453,88534.0,88524.0,0.0002]
[1769493083706,0.6510181,88533.0,88524.0,0.0002]
[1769493083907,0.67503658,88533.0,88524.0,0.0002]
[1769493089351,0.6510181,88533.0,88524.0,0.0002]
[1769493089523,0.37664461,88534.0,88523.0,0.0002]
[1769493089524,0.6510181,88529.0,88523.0,0.0002]
[1769493090288,0.0002,88521.0,88509.0,0.65335676]
[1769493090496,0.37650453,88524.0,88509.0,0.65335676]
[1769493092470,0.37650453,88524.0,88501.0,0.67711812]
[1769493092471,0.6510181,88522.0,88501.0,0.67711812]
[1769493092597,0.37650453,88512.0,88501.0,0.67711812]
[1769493093287,0.68866855,88511.0,88501.0,0.0001572]
[1769493093414,0.71268703,88511.0,88501.0,0.0001572]
[1769493093615,0.71268703,88511.0,88501.0,0.0001388]
[1769493095320,0.67503658,88511.0,88501.0,0.0001388]
[1769493095531,1.05195967,88511.0,88501.0,0.0001388]
[1769493095937,1.0499599,88511.0,88501.0,0.0001388]
[1769493096144,0.02401848,88511.0,88501.0,0.0001388]
[1769493096345,0.0021,90804.0,88501.0,0.0001388]
[1769493096346,0.02401848,88526.0,88504.0,0.65335676]
[1769493096660,0.11269847,88525.0,88507.0,0.65335676]
[1769493096923,0.37692309,88530.0,88511.0,0.65335676]
[1769493097097,0.11270515,88529.0,88511.0,0.67696092]
[1769493097277,0.6510181,88529.0,88511.0,0.67696092]
[1769493097883,0.67503658,88529.0,88511.0,0.67696092]
[1769493098091,0.37692309,88521.0,88511.0,0.67696092]
[1769493099369,0.67503658,88529.0,88511.0,0.67696092]
[1769493102152,0.37692309,88521.0,88511.0,0.67696092]
[1769493102514,0.67503658,88529.0,88511.0,0.67696092]
[1769493104119,0.6510181,88529.0,88511.0,0.67696092]
[1769493104343,0.02401848,88528.0,88511.0,0.67696092]
[1769493104765,0.6510181,88527.0,88511.0,0.67696092]
[1769493104966,0.06510181,88526.0,88511.0,0.67696092]
[1769493105184,0.02401848,88525.0,88511.0,0.65335676]
[1769493105414,0.02401848,88525.0,88506.0,0.67696092]
[1769493106951,0.02401848,88525.0,88507.0,0.02360416]
[1769493107284,0.02401848,88525.0,88508.0,0.65335676]
[1769493107462,0.02401848,88525.0,88510.0,0.65335676]
[1769493107664,0.02401848,88531.0,88510.0,0.67696092]
[1769493107860,0.11268957,88530.0,88510.0,0.67696092]
[1769493108201,0.67503658,88531.0,88510.0,0.65335676]
[1769493108416,0.0001844,88535.0,88510.0,0.65335676]
[1769493108417,0.0001844,88535.0,88510.0,0.07187063]
[1769493108584,0.0001616,88545.0,88522.0,0.65335676]
[1769493108763,0.0001616,88545.0,88525.0,0.02360416]
[1769493109101,0.0001616,88545.0,88526.0,0.67696092]
[1769493109302,0.02418008,88545.0,88526.0,0.67696092]
[1769493109663,0.02518008,88545.0,88526.0,0.67696092]
[1769493110964,0.02418008,88545.0,88526.0,0.67696092]
[1769493114336,0.0001616,88545.0,88526.0,0.65335676]
[1769493114736,0.02497147,88554.0,88529.0,0.5989237]
[1769493114931,0.56827457,88552.0,88529.0,0.5989237]
[1769493115213,0.56827457,88551.0,88529.0,0.5989237]
[1769493115487,0.001,88545.0,88531.0,0.5989237]
[1769493115919,0.02497147,88550.0,88531.0,0.5990779]
[1769493117195,0.56827457,88550.0,88531.0,0.5990779]
[1769493117465,0.02497147,88549.0,88531.0,0.5990779]
[1769493117644,0.02497147,88549.0,88531.0,0.66052941]
[1769493117852,0.02497147,88549.0,88531.0,0.5990779]
[1769493118902,0.41992763,88550.0,88531.0,0.5990779]
[1769493119096,0.02497147,88549.0,88531.0,0.5990779]
[1769493119313,0.56827457,88548.0,88531.0,0.0001542]
[1769493119558,0.56827457,88544.0,88531.0,0.0001542]
[1769493119750,0.02497147,88543.0,88531.0,0.0001542]
[1769493120892,0.02497147,88539.0,88531.0,0.0001542]
[1769493121098,0.02497147,88538.0,88531.0,0.0001542]
[1769493128100,0.03013157,88536.0,88528.0,0.0002226]
[1769493128311,0.56827457,88533.0,88522.0,0.00014008]
[1769493128519,0.03013157,88532.0,88522.0,0.00014008]
[1769493128946,0.02981418,88532.0,88522.0,0.00014008]
[1769493129359,0.03222167,88537.0,88522.0,0.00014008]
[1769493129842,0.03222167,88537.0,88522.0,0.59906378]
[1769493130043,0.03222167,88537.0,88522.0,0.65897016]
[1769493131064,0.03190431,88537.0,88522.0,0.65897016]
[1769493131461,0.03161524,88537.0,88522.0,0.65897016]
[1769493141254,0.01129382,88544.0,88522.0,0.65897016]
[1769493141458,0.02393824,88542.0,88522.0,0.65897016]
[1769493141739,0.02393824,88540.0,88523.0,0.06589702]
[1769493143459,0.02393824,88540.0,88522.0,0.59906378]
[1769493151301,0.11305922,88539.0,88522.0,0.59906378]
[1769493151479,0.02708635,88544.0,88522.0,0.59906378]
[1769493151480,0.02318406,88537.0,88522.0,0.59906378]
[1769493158983,0.11311505,88536.0,88522.0,0.59906378]
[1769493159199,0.02318406,88537.0,88522.0,0.59906378]
[1769493159400,0.11312185,88536.0,88522.0,0.59906378]
[1769493159602,0.02318406,88537.0,88522.0,0.66029828]
[1769493159819,0.11312167,88536.0,88522.0,0.66029828]
[1769493160161,0.02318406,88537.0,88522.0,0.66029828]
[1769493160314,0.11312292,88536.0,88522.0,0.66029828]
[1769493160502,0.02318406,88537.0,88522.0,0.66029828]
[1769493160872,0.11312297,88536.0,88522.0,0.66029828]
[1769493161071,0.02318406,88537.0,88522.0,0.66029828]
[1769493161272,0.11312269,88536.0,88522.0,0.66029828]
[1769493161411,0.02318406,88537.0,88522.0,0.66029828]
[1769493161757,0.11312423,88536.0,88522.0,0.59906378]
[1769493161955,0.02318406,88543.0,88522.0,0.59906378]
[1769493162291,0.02318406,88541.0,88522.0,0.59906378]
[1769493162417,0.11312466,88540.0,88522.0,0.59906378]
[1769493162620,0.11312466,88539.0,88522.0,0.59906378]
[1769493162818,0.02318406,88537.0,88522.0,0.59906378]
[1769493163026,0.11312466,88536.0,88522.0,0.59906378]
[1769493163832,0.02318406,88542.0,88522.0,0.59906378]
[1769493164031,0.02318406,88540.0,88523.0,0.0612345]
[1769493164237,0.02318406,88538.0,88523.0,0.62695254]
[1769493164437,0.11312989,88537.0,88523.0,0.62695254]
[1769493164641,0.11312989,88536.0,88523.0,0.62695254]
[1769493164825,0.02318406,88538.0,88523.0,0.62695254]
[1769493165057,0.13631361,88537.0,88523.0,0.62695254]
[1769493165373,0.11312955,88536.0,88524.0,0.06270926]
[1769493165580,0.02318406,88537.0,88524.0,0.06270926]
[1769493165796,0.11312968,88536.0,88524.0,0.06270926]
[1769493165980,0.05313899,88551.0,88524.0,0.06270926]
[1769493166255,0.02318406,88543.0,88524.0,0.06270926]
[1769493166468,0.02318406,88541.0,88525.0,0.06526416]
[1769493166683,0.11313044,88540.0,88525.0,0.06526416]
[1769493166875,0.02318406,88543.0,88525.0,0.06526416]
[1769493167020,0.11312905,88542.0,88525.0,0.06526416]
[1769493167219,0.13631311,88541.0,88525.0,0.06526416]
[1769493167559,0.11312905,88540.0,88525.0,0.06526416]
[1769493167801,0.02318406,88543.0,88523.0,0.56571804]
[1769493167980,0.02318406,88541.0,88523.0,0.56571804]
[1769493168203,0.13631308,88540.0,88523.0,0.56571804]
[1769493168381,0.02318406,88540.0,88523.0,0.56571804]
[1769493173187,0.02318406,88540.0,88524.0,0.05899324]
[1769493173362,0.02318406,88540.0,88523.0,0.56571804]
[1769493176090,0.11312879,88539.0,88523.0,0.56571804]
[1769493176337,0.02318406,88540.0,88523.0,0.56571804]
[1769493176338,0.11312879,88538.0,88523.0,0.56571804]
[1769493176529,0.02318406,88540.0,88523.0,0.56571804]
[1769493176711,0.11312888,88539.0,88523.0,0.56571804]
[1769493176911,0.11312888,88538.0,88523.0,0.62471128]
[1769493177139,0.02318406,88540.0,88523.0,0.62471128]
[1769493177346,0.11312996,88539.0,88523.0,0.62471128]
[1769493177527,0.02318406,88540.0,88523.0,0.62471128]
[1769493177528,0.11312996,88538.0,88523.0,0.62471128]
[1769493177672,0.02318406,88540.0,88523.0,0.62471128]
[1769493177871,0.11311564,88539.0,88523.0,0.62471128]
[1769493178071,0.11311564,88538.0,88523.0,0.62471128]
[1769493178332,0.02318406,88540.0,88523.0,0.62471128]
[1769493178534,0.11311606,88539.0,88523.0,0.62471128]
[1769493178739,0.11311606,88538.0,88523.0,0.56571804]
[1769493178948,0.02318406,88540.0,88523.0,0.56571804]
[1769493179121,0.11311587,88539.0,88523.0,0.56571804]
[1769493179305,0.11311587,88538.0,88523.0,0.56571804]
[1769493179507,0.02318406,88540.0,88523.0,0.56571804]
[1769493179708,0.11311564,88539.0,88523.0,0.56571804]
[1769493179918,0.11311564,88538.0,88523.0,0.56571804]
[1769493180288,0.02318406,88540.0,88523.0,0.56571804]
[1769493180498,0.11311571,88539.0,88523.0,0.56571804]
[1769493180710,0.11311571,88538.0,88523.0,0.56571804]
[1769493180914,0.02318406,88540.0,88523.0,0.56571804]
[1769493181154,0.11311571,88539.0,88523.0,0.56571804]
[1769493181352,0.11311571,88538.0,88523.0,0.56571804]
[1769493181559,0.02430378,88540.0,88523.0,0.56571804]
[1769493181758,0.11311571,88539.0,88523.0,0.56571804]
[1769493181920,0.11311571,88538.0,88523.0,0.56571804]
[1769493182117,0.02430378,88540.0,88523.0,0.56571804]
[1769493182349,0.11311576,88539.0,88523.0,0.56571804]
[1769493182550,0.11311576,88538.0,88523.0,0.56571804]
[1769493182751,0.02430378,88540.0,88523.0,0.56571804]
[1769493182925,0.11311584,88539.0,88523.0,0.56571804]
[1769493183127,0.11311584,88538.0,88523.0,0.56571804]
[1769493183328,0.02708635,88544.0,88522.0,0.00014008]
[1769493183329,0.02430378,88536.0,88522.0,0.00014008]
[1769493183683,0.02430378,88533.0,88522.0,0.00014008]
[1769493195322,0.48693237,88539.0,88522.0,0.00014008]
[1769493195523,0.13739954,88538.0,88522.0,0.00014008]
[1769493195787,0.11309576,88537.0,88522.0,0.00014008]
[1769493195964,0.02430378,88538.0,88522.0,0.00014008]
[1769493196172,0.11309597,88537.0,88522.0,0.00014008]
[1769493196324,0.02430378,88538.0,88522.0,0.00014008]
[1769493196529,0.11309421,88537.0,88522.0,0.00014008]
[1769493196829,0.02430378,88538.0,88522.0,0.00014008]
[1769493197028,0.1130943,88537.0,88522.0,0.00014008]
[1769493197234,0.02430378,88538.0,88522.0,0.00014008]
[1769493197438,0.11309327,88537.0,88522.0,0.00014008]
[1769493197687,0.02430378,88538.0,88522.0,0.00014008]
[1769493197859,0.11309348,88537.0,88522.0,0.00014008]
[1769493198067,0.06243296,88536.0,88522.0,0.00014008]
[1769493198950,0.02430378,88538.0,88522.0,0.00014008]
[1769493199146,0.11309323,88537.0,88522.0,0.00014008]
[1769493199386,0.02430378,88538.0,88522.0,0.00014008]
[1769493199589,0.11309334,88537.0,88522.0,0.00014008]
[1769493199768,0.02430378,88538.0,88522.0,0.00014008]
[1769493199984,0.11309329,88537.0,88522.0,0.00014008]
[1769493200190,0.02430378,88538.0,88522.0,0.00014008]
[1769493200388,0.1130933,88537.0,88522.0,0.00014008]
[1769493200591,0.02430378,88538.0,88522.0,0.00014008]
[1769493200823,0.11309342,88537.0,88522.0,0.00014008]
[1769493201157,0.02430378,88538.0,88522.0,0.00014008]
[1769493201330,0.11309357,88537.0,88522.0,0.00014008]
[1769493201537,0.02430378,88538.0,88522.0,0.00014008]
[1769493201744,0.11309357,88537.0,88522.0,0.00014008]
[1769493201881,0.02430378,88538.0,88522.0,0.00014008]
[1769493202081,0.11309357,88537.0,88522.0,0.00014008]
[1769493202333,0.02430378,88538.0,88522.0,0.00014008]
[1769493202548,0.11309383,88537.0,88522.0,0.00014008]
[1769493202789,0.02430378,88538.0,88522.0,0.00014008]
[1769493203089,0.11309383,88537.0,88522.0,0.00014008]
[1769493203222,0.02430378,88538.0,88522.0,0.00014008]
[1769493214155,0.08265358,88538.0,88522.0,0.00014008]
[1769493214334,0.02430378,88538.0,88522.0,0.00014008]
[1769493229501,0.02430378,88538.0,88522.0,0.00014008]
[1769493236637,0.02430378,88538.0,88522.0,0.59268226]
[1769493237180,0.48693237,88537.0,88522.0,0.02394473]
[1769493241097,0.28255734,88537.0,88522.0,0.02394473]
[1769493241254,0.28255734,88537.0,88523.0,0.05926823]
[1769493241611,0.28239864,88537.0,88523.0,0.05926823]
[1769493243436,0.28239864,88537.0,88522.0,0.02394473]
[1769493245166,0.29369335,88537.0,88522.0,0.02394473]
[1769493247202,0.28444397,88536.0,88519.0,0.56873753]
[1769493247403,0.02254168,88535.0,88519.0,0.56873753]
[1769493247548,0.02254168,88534.0,88519.0,0.56873753]
[1769493248484,0.01129522,88533.0,88519.0,0.56873753]
[1769493248746,0.02254168,88533.0,88519.0,0.56873753]
[1769493255855,6.335e-05,88536.0,88519.0,0.59254218]
[1769493256059,0.02260503,88536.0,88519.0,0.59254218]
[1769493256481,0.02254168,88535.0,88519.0,0.59254218]
[1769493270159,0.28444397,88534.0,88511.0,0.55439256]
[1769493270302,0.02401267,88531.0,88511.0,0.55439256]
[1769493270513,0.02401267,88531.0,88512.0,0.02395662]
[1769493270725,0.030852,88530.0,88515.0,0.55439256]
[1769493271346,0.02401267,88531.0,88515.0,0.55439256]
[1769493272770,0.02501267,88531.0,88515.0,0.55439256]
[1769493275271,0.02401267,88531.0,88515.0,0.57834918]
[1769493276180,0.02501267,88531.0,88515.0,0.57834918]
[1769493277739,0.02401267,88531.0,88515.0,0.57834918]
[1769493277959,0.02501267,88531.0,88515.0,0.57834918]
[1769493279847,0.06612998,88531.0,88515.0,0.57834918]
[1769493280469,0.02401267,88529.0,88509.0,0.0001416]
[1769493280767,0.02401267,88525.0,88509.0,0.0001416]
[1769493281128,0.02401267,88525.0,88509.0,0.55453416]
[1769493282419,0.02501267,88525.0,88509.0,0.55453416]
[1769493284547,0.02401267,88525.0,88509.0,0.55453416]
[1769493284969,0.02501267,88525.0,88509.0,0.55453416]
[1769493286483,0.11417664,88531.0,88510.0,0.61224164]
[1769493286656,0.13818931,88531.0,88511.0,0.02395662]
[1769493287991,0.13918931,88531.0,88511.0,0.02395662]
[1769493289603,0.13918931,88531.0,88511.0,0.57834918]
[1769493291993,0.05109902,88530.0,88511.0,0.57834918]
[1769493292142,0.11587932,88529.0,88511.0,0.57834918]
[1769493292346,0.13915874,88529.0,88511.0,0.57834918]
[1769493292872,0.01129662,88522.0,88511.0,0.57834918]
[1769493293236,0.01129649,88523.0,88511.0,0.57834918]
[1769493294098,0.13915874,88529.0,88511.0,0.57834918]
[1769493294801,0.13915874,88529.0,88511.0,0.57934918]
[1769493295230,0.13915874,88529.0,88511.0,0.57834918]
[1769493296406,0.01663084,88529.0,88511.0,0.57834918]
[1769493296559,0.11587932,88528.0,88511.0,0.02395662]
[1769493296742,0.13915874,88527.0,88511.0,0.02395662]
[1769493298636,4.27006651,88526.0,88511.0,0.02395662]
[1769493298833,0.11587932,88525.0,88509.0,0.0001416]
[1769493299865,0.13915874,88525.0,88509.0,0.0001416]
[1769493300472,4.024059,88527.0,88509.0,0.0001416]
[1769493300682,0.11276157,88526.0,88509.0,0.00020495]
[1769493301035,0.00115879,88526.0,88509.0,0.00020495]
[1769493301228,0.00115879,88526.0,88510.0,0.02465738]
[1769493301597,0.01129675,88521.0,88510.0,0.02465738]
[1769493301814,0.01129662,88522.0,88510.0,0.02465738]
[1769493302024,0.01129662,88522.0,88509.0,0.00020495]
[1769493302025,0.01129688,88520.0,88509.0,0.00020495]
[1769493302375,0.01129726,88517.0,88509.0,0.00020495]
[1769493303571,0.02243684,88517.0,88509.0,0.00020495]
[1769493303979,0.01113958,88517.0,88509.0,0.00020495]
[1769493304163,0.011297,88519.0,88509.0,0.00020495]
[1769493304346,0.01129688,88520.0,88509.0,0.00020495]
[1769493304557,0.00115879,88521.0,88509.0,0.00020495]
[1769493310193,0.011297,88519.0,88509.0,0.00020495]
[1769493310386,0.01129726,88517.0,88509.0,0.00020495]
[1769493310587,0.02496964,88516.0,88509.0,0.00020495]
[1769493311320,0.01367225,88516.0,88509.0,0.00020495]
[1769493311675,0.01129726,88517.0,88509.0,0.00020495]
[1769493313324,0.011297,88519.0,88509.0,0.00020495]
[1769493313713,0.011297,88519.0,88509.0,0.00120495]
[1769493313935,0.0085642,88524.0,88509.0,0.00120495]
[1769493314134,3.416263,88526.0,88509.0,0.02486233]
[1769493314349,0.11160278,88525.0,88509.0,0.02486233]
[1769493314549,3.408776,88526.0,88509.0,0.02486233]
[1769493315352,0.00115879,88526.0,88509.0,0.02486233]
[1769493318294,0.11295626,88525.0,88509.0,0.02486233]
[1769493318473,0.00115879,88526.0,88509.0,0.02486233]
[1769493318653,0.11295626,88525.0,88509.0,0.02486233]
[1769493318858,0.00115879,88526.0,88509.0,0.02486233]
[1769493319158,0.11295626,88525.0,88509.0,0.02486233]
[1769493319357,0.02698094,88526.0,88509.0,0.02486233]
[1769493319700,0.11296275,88525.0,88509.0,0.02486233]
[1769493320003,0.02698094,88526.0,88509.0,0.02486233]
[1769493320210,0.11296275,88525.0,88509.0,0.02486233]
[1769493320414,0.02698094,88526.0,88509.0,0.02486233]
[1769493320613,0.11297091,88525.0,88509.0,0.02486233]
[1769493320814,0.02698094,88526.0,88509.0,0.02486233]
[1769493321017,0.11297091,88525.0,88509.0,0.02486233]
[1769493321218,0.02698094,88526.0,88509.0,0.02486233]
[1769493321366,0.11298089,88525.0,88509.0,0.02486233]
[1769493321570,0.02698094,88526.0,88509.0,0.02486233]
[1769493321822,0.11298089,88525.0,88509.0,0.02486233]
[1769493321979,0.03970245,88524.0,88509.0,0.02486233]
[1769493324078,0.01129713,88518.0,88509.0,0.02486233]
[1769493325020,0.01129726,88517.0,88509.0,0.02486233]
[1769493325220,0.011297,88519.0,88509.0,0.02486233]
[1769493326241,0.01129713,88518.0,88509.0,0.02486233]
[1769493326441,0.01129726,88517.0,88509.0,0.02486233]
[1769493326760,0.01129713,88518.0,88509.0,0.02486233]
[1769493326960,0.01129726,88517.0,88509.0,0.02486233]
[1769493327751,0.01129713,88518.0,88509.0,0.02486233]
[1769493328095,0.01129637,88524.0,88509.0,0.02486233]
[1769493328293,0.01129675,88521.0,88509.0,0.02486233]
[1769493329347,0.01129662,88522.0,88509.0,0.02486233]
[1769493329550,0.01129637,88524.0,88509.0,0.02486233]
[1769493329711,0.11307004,88523.0,88509.0,0.02486233]
[1769493330047,0.11307004,88522.0,88509.0,0.02486233]
[1769493330226,0.01129637,88524.0,88509.0,0.02486233]
[1769493330429,0.11307027,88523.0,88509.0,0.02486233]
[1769493330600,0.11307027,88522.0,88509.0,0.02486233]
[1769493330801,0.01129637,88524.0,88509.0,0.02486233]
[1769493331001,0.11307036,88523.0,88509.0,0.02486233]
[1769493331266,0.11307036,88522.0,88509.0,0.02486233]
[1769493331443,0.01129637,88524.0,88509.0,0.02486233]
[1769493331646,0.11307451,88523.0,88509.0,0.02486233]
[1769493331852,0.11307451,88522.0,88509.0,0.02486233]
[1769493332053,0.01129637,88524.0,88509.0,0.02486233]
[1769493332216,0.11307769,88523.0,88509.0,0.02486233]
[1769493332594,0.11307769,88522.0,88509.0,0.02486233]
[1769493332800,0.0167982,88523.0,88509.0,0.02486233]
[1769493333003,0.11307743,88522.0,88509.0,0.02486233]
[1769493333162,0.01129637,88524.0,88509.0,0.02486233]
[1769493333355,0.11307771,88523.0,88509.0,0.02486233]
[1769493333562,0.11307771,88522.0,88509.0,0.02486233]
[1769493333751,0.01129637,88524.0,88509.0,0.02486233]
[1769493333956,0.11307789,88523.0,88509.0,0.02486233]
[1769493334172,0.11307789,88522.0,88509.0,0.02486233]
[1769493334351,0.01129637,88524.0,88509.0,0.02486233]
[1769493334553,0.11307765,88523.0,88509.0,0.02486233]
[1769493334752,0.11307765,88522.0,88509.0,0.02486233]
[1769493334992,0.01129637,88524.0,88509.0,0.02486233]
[1769493335202,0.11307781,88523.0,88509.0,0.02486233]
[1769493335371,0.11307781,88522.0,88509.0,0.02486233]
[1769493335973,0.01129637,88524.0,88509.0,0.02486233]
[1769493336178,0.11307805,88523.0,88509.0,0.02486233]
[1769493336341,0.11307805,88522.0,88509.0,0.02486233]
[1769493336540,0.01129637,88524.0,88509.0,0.02486233]
[1769493336740,0.11307783,88523.0,88509.0,0.02486233]
[1769493336942,0.11307783,88522.0,88509.0,0.02486233]
[1769493337185,0.01129637,88524.0,88509.0,0.02486233]
[1769493337395,0.11307806,88523.0,88509.0,0.02486233]
[1769493337725,0.11307806,88522.0,88509.0,0.02486233]
[1769493337868,0.01129637,88524.0,88509.0,0.02486233]
[1769493338071,0.1130782,88523.0,88509.0,0.02486233]
[1769493338272,0.1130782,88522.0,88509.0,0.02486233]
[1769493338467,0.0124549,88526.0,88509.0,0.02486233]
[1769493338693,0.11307808,88525.0,88509.0,0.02486233]
[1769493338871,0.11307808,88524.0,88509.0,0.02486233]
[1769493339072,0.11307808,88523.0,88509.0,0.02486233]
[1769493339276,0.11307808,88522.0,88509.0,0.02486233]
[1769493339480,0.0124549,88526.0,88509.0,0.02486233]
[1769493339690,0.11307951,88525.0,88509.0,0.02486233]
[1769493339892,0.11307951,88524.0,88509.0,0.02486233]
[1769493340097,0.11307951,88523.0,88509.0,0.02486233]
[1769493340279,0.11307951,88522.0,88509.0,0.02486233]
[1769493340479,0.02585931,88526.0,88509.0,0.02486233]
[1769493340718,0.1130784,88525.0,88509.0,0.02486233]
[1769493340900,0.1130784,88524.0,88509.0,0.02486233]
[1769493341098,0.1130784,88523.0,88509.0,0.02486233]
[1769493341305,0.1130784,88522.0,88509.0,0.02486233]
[1769493341532,0.02585931,88526.0,88509.0,0.02486233]
[1769493341834,0.11307863,88525.0,88509.0,0.02486233]
[1769493342034,0.11307863,88524.0,88509.0,0.02486233]
[1769493342198,0.11307863,88523.0,88509.0,0.02486233]
[1769493342398,0.11307863,88522.0,88509.0,0.02486233]
[1769493342646,0.01700909,88522.0,88509.0,0.02486233]
[1769493342865,0.02585931,88526.0,88509.0,0.02486233]
[1769493343002,0.1130786,88525.0,88509.0,0.02486233]
[1769493343201,0.1130786,88524.0,88509.0,0.02486233]
[1769493343450,0.1130786,88523.0,88509.0,0.02486233]
[1769493343618,0.1130786,88522.0,88509.0,0.02486233]
[1769493343821,0.11307813,88521.0,88509.0,0.02486233]
[1769493344024,0.02585931,88526.0,88509.0,0.02486233]